bitfinex/quotes_ETHUSD_20250508
["timestamp","ask_amount","ask_price","bid_price","bid_amount"]
[1746740996898,0.05730982,2181.2,2180.8,25.36146588]
[1746740997402,0.05730982,2181.2,2180.9,0.04579057]
[1746740997961,4.58446106,2181.3,2181.1,3.0]
[1746740998167,4.58433447,2181.4,2181.1,9.11]
[1746740998366,4.64164389,2181.4,2181.1,9.11]
[1746740998597,4.58463231,2181.2,2181.1,9.11]
[1746740998798,4.64194229,2181.2,2181.1,9.11]
[1746740999591,0.05730998,2181.2,2181.1,14.413]
[1746740999766,0.87820998,2181.2,2181.1,9.11]
[1746741000178,0.87820998,2181.2,2181.1,3.0]
[1746741001011,5.29968297,2181.5,2181.1,3.8303]
[1746741001165,0.01151925,2181.4,2181.1,0.8303]
[1746741001365,4.58409396,2181.5,2181.2,5.303]
[1746741001572,4.58390765,2181.6,2181.2,5.303]
[1746741001882,4.58466817,2181.2,2180.6,3.29121648]
[1746741002067,4.58379171,2181.6,2180.6,8.83964982]
[1746741002403,4.58547322,2180.8,2180.6,3.08798175]
[1746741002601,4.59720274,2180.7,2180.6,3.08798175]
[1746741002969,0.01151925,2180.7,2180.6,3.08798175]
[1746741003303,4.59720274,2180.7,2180.6,3.08798175]
[1746741003879,5.14720274,2180.7,2180.6,3.08798175]
[1746741004080,6.94137369,2180.7,2180.6,3.08798175]
[1746741004502,6.94137369,2180.7,2180.0,3.98894304]
[1746741004503,5.95784555,2180.1,2180.0,3.98894304]
[1746741004815,5.9693648,2180.1,2180.0,3.98894304]
[1746741005473,5.95868731,2179.7,2179.6,4.91194582]
[1746741005675,5.9591083,2179.5,2178.8,7.61530204]
[1746741005976,5.95995052,2179.1,2178.8,7.61530204]
[1746741006174,5.13971072,2178.8,2178.6,9.4415365]
[1746741006375,11.72776389,2178.7,2178.6,9.4415365]
[1746741006585,11.71624464,2178.7,2178.6,9.4415365]
[1746741006811,10.13832639,2178.7,2178.6,9.4415365]
[1746741007013,15.92484564,2178.7,2178.6,9.4415365]
[1746741007322,18.91332639,2178.7,2178.6,8.7958365]
[1746741007682,18.91332639,2178.7,2177.1,8.228]
[1746741007683,4.59200073,2177.7,2177.6,4.00835644]
[1746741007891,4.60351998,2177.7,2177.6,4.00835644]
[1746741010179,4.60351998,2177.7,2177.0,8.228]
[1746741010180,4.59326627,2177.1,2177.0,5.228]
[1746741010379,4.60478552,2177.1,2177.0,5.228]
[1746741010974,4.59368827,2176.9,2176.8,0.20240242]
[1746741011303,4.59411035,2176.7,2176.6,19.513]
[1746741011485,4.6056296,2176.7,2176.6,16.513]
[1746741011676,4.59411035,2176.7,2176.3,5.23]
[1746741011878,4.59474361,2176.4,2176.3,5.23]
[1746741012288,4.59474361,2176.4,2176.3,8.23]
[1746741012607,4.59474361,2176.4,2176.3,5.23]
[1746741013313,4.59474361,2176.4,2176.3,5.95013951]
[1746741013623,0.55,2177.5,2176.3,8.42713951]
[1746741013788,4.59423798,2176.7,2176.3,8.42713951]
[1746741013980,4.59423798,2176.7,2176.5,0.7713]
[1746741014302,0.01151925,2177.0,2176.5,0.7713]
[1746741014506,4.59432141,2176.6,2176.5,0.7713]
[1746741014896,4.59474361,2176.4,2176.3,8.42713951]
[1746741015208,4.59474361,2176.4,2176.3,5.78853922]
[1746741015781,4.59474361,2176.4,2176.3,5.59139971]
[1746741015983,4.60626286,2176.4,2176.3,2.59139971]
[1746741017219,4.59495473,2176.3,2176.2,0.20709813]
[1746741017406,4.59495473,2176.3,2175.7,5.233]
[1746741017612,4.59495473,2176.3,2175.8,0.8233]
[1746741017613,4.59579943,2175.9,2175.8,0.8233]
[1746741017811,4.59568181,2176.0,2175.8,1.02840542]
[1746741018200,4.59579943,2175.9,2175.8,1.02840542]
[1746741018690,4.59579943,2175.9,2175.8,0.20510542]
[1746741018891,4.59579943,2175.9,2175.7,5.233]
[1746741019227,4.59546565,2176.1,2175.8,0.7853]
[1746741019397,4.59568197,2176.0,2175.8,3.7853]
[1746741019610,4.59579943,2175.9,2175.8,4.70811304]
[1746741019807,4.5956497,2176.0,2175.8,4.70811304]
[1746741020007,4.59579943,2175.9,2175.8,4.70811304]
[1746741021033,4.59579943,2175.9,2175.8,0.7853]
[1746741021524,4.59601066,2175.8,2175.7,8.44283041]
[1746741021727,4.59730834,2175.2,2175.1,5.236]
[1746741021889,4.59788838,2175.0,2174.6,22.652]
[1746741022091,4.59788838,2175.0,2174.7,2.28919262]
[1746741022491,4.59731497,2175.2,2174.7,2.83281081]
[1746741022913,4.59812396,2174.8,2174.7,0.20067517]
[1746741023197,4.59814847,2174.8,2174.7,5.236]
[1746741023392,4.21965151,2174.8,2174.7,5.43858597]
[1746741023621,0.01151925,2175.3,2174.7,5.43858597]
[1746741023825,4.59538217,2176.1,2175.1,3.0]
[1746741023994,4.59495473,2176.3,2175.2,0.50905345]
[1746741024327,0.0391,2176.4,2174.9,6.11]
[1746741024328,4.59562155,2176.0,2175.4,7.5968069]
[1746741024530,4.59562155,2176.0,2175.6,8.69752172]
[1746741024708,4.59548671,2176.1,2175.6,8.69752172]
[1746741024910,4.00559985,2176.0,2175.6,8.69752172]
[1746741025110,4.59546736,2176.1,2175.6,8.69752172]
[1746741025409,4.59565969,2176.0,2175.7,1.99297217]
[1746741025611,4.59565969,2176.0,2175.7,2.33963833]
[1746741025928,4.19745969,2176.0,2175.8,0.8042]
[1746741026228,4.59567125,2176.0,2175.8,0.8042]
[1746741026430,4.59579943,2175.9,2175.8,0.8042]
[1746741026731,0.05744565,2175.9,2175.2,0.8042]
[1746741027049,4.59654005,2175.6,2175.5,8.237]
[1746741027448,4.59654005,2175.6,2175.5,5.237]
[1746741029652,4.65399823,2175.6,2175.5,5.187]
[1746741030542,4.59664444,2175.5,2175.4,6.11]
[1746741031353,4.59706707,2175.3,2175.2,0.8042]
[1746741031859,4.73113127,2175.3,2175.2,0.8042]
[1746741032150,4.59706707,2175.3,2175.2,0.8042]
[1746741032355,4.59706707,2175.3,2175.0,16.25]
[1746741032356,4.59706707,2175.3,2174.9,5.237]
[1746741032517,4.59770114,2175.0,2174.9,5.237]
[1746741032858,4.65517846,2175.0,2174.9,5.237]
[1746741033149,4.65517938,2175.0,2174.9,5.237]
[1746741033563,4.59770114,2175.0,2174.9,5.237]
[1746741034060,4.36779486,2175.0,2174.9,2.59720864]
[1746741034571,0.05747043,2175.2,2174.9,2.59720864]
[1746741034770,0.0391,2175.5,2174.9,2.59720864]
[1746741034771,4.59770114,2175.0,2174.9,2.59720864]
[1746741035067,4.59685575,2175.4,2174.9,2.59720864]
[1746741035360,0.0391,2175.5,2174.9,2.59720864]
[1746741035361,4.59763807,2175.1,2174.9,2.59720864]
[1746741035662,4.59766634,2175.1,2174.9,2.59720864]
[1746741035834,4.59770114,2175.0,2174.9,2.59720864]
[1746741036042,4.34810114,2175.0,2174.9,2.59720864]
[1746741036230,4.42809222,2175.1,2174.9,2.59720864]
[1746741036431,4.59770114,2175.0,2174.9,2.59720864]
[1746741036934,4.59918134,2174.3,2174.2,0.21034834]
[1746741037140,4.59918134,2174.3,2174.1,5.70252172]
[1746741037141,4.59939288,2174.2,2174.1,5.70252172]
[1746741038037,4.59939288,2174.2,2174.1,0.005]
[1746741039769,4.60023921,2173.8,2173.7,5.165]
[1746741040430,4.60023921,2173.8,2173.7,5.37559501]
[1746741040785,4.59939288,2174.2,2173.7,6.74135451]
[1746741040965,4.60012913,2173.9,2173.7,1.57635451]
[1746741041178,4.60012913,2173.9,2173.8,5.167]
[1746741041339,4.60087416,2173.5,2173.4,0.005]
[1746741042477,4.60066249,2173.6,2173.4,0.004]
[1746741042796,4.60087416,2173.5,2173.4,0.004]
[1746741046704,4.63997416,2173.5,2173.4,0.004]
[1746741047357,4.9802713,2173.5,2173.4,0.004]
[1746741047590,4.63997416,2173.5,2173.4,0.004]
[1746741047991,4.98527668,2173.5,2173.4,0.004]
[1746741048176,5.06522944,2173.5,2173.4,0.004]
[1746741048379,6.03182408,2173.5,2173.4,0.004]
[1746741048692,9.78297416,2173.5,2173.4,0.004]
[1746741048906,4.63997416,2173.5,2173.4,0.004]
[1746741049061,9.78197416,2173.5,2173.4,0.004]
[1746741049262,11.68197416,2173.5,2173.4,0.004]
[1746741049773,9.78197416,2173.5,2173.4,0.004]
[1746741049967,11.25421775,2173.5,2173.4,0.004]
[1746741050284,14.80421775,2173.5,2173.4,0.004]
[1746741051378,15.22865682,2173.5,2173.4,0.004]
[1746741052103,15.48331749,2173.5,2173.4,0.004]
[1746741052303,4.60371484,2172.2,2172.1,0.20193681]
[1746741052600,4.60353153,2172.3,2171.8,4.13711071]
[1746741052802,4.60381762,2172.2,2171.8,4.13711071]
[1746741052999,4.60390477,2172.1,2171.8,1.13711071]
[1746741053173,4.6038954,2172.1,2171.8,2.79805382]
[1746741053416,4.60411773,2172.0,2171.8,2.45854311]
[1746741053739,4.60411773,2172.0,2171.7,5.17]
[1746741053740,4.60447555,2171.8,2171.7,5.17]
[1746741053942,4.60426354,2171.9,2171.4,0.8074]
[1746741053943,4.60508736,2171.6,2171.4,0.8074]
[1746741054112,4.60511167,2171.5,2171.4,1.01238242]
[1746741054446,4.60574797,2171.2,2171.1,5.171]
[1746741054675,4.60560974,2171.3,2171.1,5.171]
[1746741054806,4.60545148,2171.4,2171.1,6.62759012]
[1746741055007,0.0391,2171.9,2171.1,10.83985549]
[1746741055232,0.0391,2172.2,2171.2,3.0]
[1746741055434,4.60233322,2172.9,2171.5,3.0]
[1746741055435,4.64209194,2172.5,2171.5,3.0]
[1746741055609,4.60392668,2172.1,2171.7,4.60468094]
[1746741055818,4.60394068,2172.1,2171.8,6.44367227]
[1746741056138,4.60368956,2172.2,2171.8,5.9786]
[1746741056302,4.60405156,2172.0,2171.9,0.04604475]
[1746741056502,4.60341573,2172.3,2171.2,6.50412172]
[1746741056702,4.60442855,2171.9,2171.4,10.30281553]
[1746741056927,4.60456463,2171.8,2171.5,5.172]
[1746741057130,9.77169684,2172.7,2171.5,5.172]
[1746741057131,4.60278007,2172.6,2171.5,5.172]
[1746741057341,4.60468707,2171.8,2171.5,5.172]
[1746741057538,4.60489961,2171.6,2171.5,5.172]
[1746741058040,4.60428467,2171.9,2171.2,5.173]
[1746741058041,4.60447555,2171.8,2171.2,5.173]
[1746741058246,4.60553585,2171.3,2171.2,5.173]
[1746741058412,4.60574797,2171.2,2171.1,5.37606862]
[1746741058806,4.60574797,2171.2,2171.1,5.173]
[1746741059543,9.73028467,2171.9,2169.8,4.60858387]
[1746741059544,4.6070211,2170.6,2169.8,4.60858387]
[1746741059726,4.60779126,2170.3,2170.1,5.173]
[1746741059911,4.60787024,2170.2,2170.1,5.173]
[1746741060842,4.64597054,2170.7,2169.7,0.33950829]
[1746741061152,4.6070211,2170.6,2169.6,16.77694675]
[1746741061369,4.60893211,2169.7,2169.2,0.8168]
[1746741061641,4.64747224,2170.0,2168.9,5.69752172]
[1746741061859,4.60998293,2169.3,2168.9,5.69752172]
[1746741062010,4.60910408,2169.7,2168.9,0.33733173]
[1746741062213,4.60871969,2169.8,2168.9,5.69752172]
[1746741062518,0.0391,2170.4,2169.3,0.8168]
[1746741062830,0.0391,2170.4,2169.4,5.174]
[1746741063008,4.60904988,2169.7,2169.4,5.174]
[1746741063336,4.60956946,2169.4,2169.3,0.8168]
[1746741063504,0.0391,2170.4,2169.3,0.8168]
[1746741063709,4.60787024,2170.2,2169.3,0.8168]
[1746741063905,4.60787024,2170.2,2169.2,5.174]
[1746741064147,4.60962197,2169.4,2169.2,5.174]
[1746741064324,4.61063211,2168.9,2168.1,0.8168]
[1746741064528,4.61088451,2168.8,2168.1,0.8168]
[1746741064701,4.61097924,2168.8,2168.2,0.04611663]
[1746741064909,5.118,2169.2,2168.1,0.55618457]
[1746741065116,5.118,2169.2,2167.2,5.69752172]
[1746741065117,0.0391,2168.9,2167.2,5.69752172]
[1746741065411,0.0391,2168.9,2167.9,0.8168]
[1746741065609,0.0391,2168.9,2168.0,5.176]
[1746741065610,4.61166088,2168.5,2168.0,5.176]
[1746741065805,0.0391,2168.9,2166.9,0.8168]
[1746741066018,0.0391,2168.9,2166.7,19.586]
[1746741066019,4.61267242,2168.0,2167.5,4.61360592]
[1746741066245,4.61248834,2168.1,2167.6,0.46136059]
[1746741066433,5.1561,2168.9,2167.7,0.8168]
[1746741066628,4.61186978,2168.4,2167.9,3.0]
[1746741066816,0.0391,2168.9,2167.7,0.8168]
[1746741067016,4.61107328,2168.7,2167.8,0.63941606]
[1746741067360,4.61202725,2168.3,2167.8,0.63941606]
[1746741067519,4.61216648,2168.2,2167.7,3.8168]
[1746741067719,0.0391,2168.9,2167.7,8.42996426]
[1746741067921,4.61105731,2168.7,2167.7,3.8168]
[1746741068123,5.116,2168.6,2167.4,0.8168]
[1746741068322,0.0391,2167.8,2167.2,0.54535284]
[1746741068645,0.0391,2167.8,2166.1,0.8168]
[1746741068834,4.6133973,2167.6,2166.2,5.118]
[1746741069147,4.61467466,2167.0,2165.8,16.593]
[1746741069313,4.65375585,2167.1,2165.8,16.593]
[1746741069510,4.61467466,2167.0,2165.9,5.118]
[1746741069728,5.114,2166.9,2165.9,5.118]
[1746741069936,0.0391,2167.1,2165.9,5.118]
[1746741070139,4.6116177,2168.5,2165.9,5.118]
[1746741070140,0.0391,2168.1,2167.0,4.6145509]
[1746741070306,0.0391,2168.1,2167.1,5.121]
[1746741070513,4.6142488,2167.2,2167.1,5.121]
[1746741070841,4.6142488,2167.2,2165.8,0.54784855]
[1746741070842,0.92283167,2167.2,2165.8,0.54784855]
[1746741071149,0.92283167,2167.2,2164.3,0.005]
[1746741071150,4.62021807,2164.4,2164.3,0.005]
[1746741071360,4.66639326,2164.4,2164.3,0.005]
[1746741071715,5.115,2165.1,2164.3,0.005]
[1746741071716,0.0391,2165.5,2164.3,0.005]
[1746741071951,4.61956992,2164.8,2164.3,0.005]
[1746741072138,4.62021807,2164.4,2164.3,0.005]
[1746741072337,4.62021807,2164.4,2162.1,4.62503856]
[1746741072338,0.0391,2164.3,2162.4,0.808]
[1746741072537,0.0391,2164.3,2161.3,14.95803307]
[1746741072538,5.114,2164.2,2161.9,0.04623099]
[1746741072860,4.62500077,2162.2,2161.6,6.50552172]
[1746741073163,4.62500077,2162.2,2161.1,0.29093231]
[1746741073164,5.114,2162.7,2161.2,0.808]
[1746741073491,4.62666827,2161.4,2161.2,0.808]
[1746741073617,4.62414951,2162.6,2161.2,0.808]
[1746741073926,4.6244913,2162.4,2161.3,1.1423578]
[1746741074247,0.0391,2162.8,2161.3,1.1423578]
[1746741074451,0.0391,2162.8,2161.3,1.18862464]
[1746741074759,0.0391,2162.8,2161.3,8.19447709]
[1746741075061,0.3945137,2163.4,2161.3,12.82127868]
[1746741075228,0.0391,2163.4,2162.1,4.62493443]
[1746741075427,0.0391,2163.4,2161.6,3.0]
[1746741075428,0.5114,2164.1,2162.6,3.0]
[1746741075627,0.5114,2164.1,2163.3,3.7897]
[1746741075628,4.62095963,2164.1,2163.3,3.7897]
[1746741075842,4.61933048,2164.9,2163.7,3.0]
[1746741075843,0.0391,2164.9,2163.7,3.0]
[1746741076060,4.6204668,2164.3,2163.7,3.0]
[1746741076266,4.62150011,2163.8,2163.4,5.124]
[1746741076473,4.62122209,2164.0,2163.4,5.124]
[1746741076672,4.6200166,2164.5,2163.5,5.25267]
[1746741076875,4.6196338,2164.7,2163.6,0.04620712]
[1746741077035,4.6184562,2165.3,2163.8,4.62149921]
[1746741077236,0.0391,2166.3,2164.6,0.7897]
[1746741077435,8.43507882,2166.8,2165.0,8.19447709]
[1746741077436,3.94084531,2166.6,2165.0,8.19447709]
[1746741077669,3.94084531,2166.6,2166.1,0.7897]
[1746741077983,2.50428498,2167.0,2166.9,4.61488762]
[1746741078272,4.08625634,2167.2,2167.1,7.61446172]
[1746741078478,4.23735734,2167.2,2166.9,1.56948986]
[1746741078679,4.61751527,2165.7,2164.2,0.7897]
[1746741078889,0.0385,2166.0,2164.5,8.19447709]
[1746741079044,0.0385,2166.0,2164.3,21.95318986]
[1746741079045,0.0385,2166.6,2164.9,8.19447709]
[1746741079242,3.40735734,2167.2,2165.4,0.7897]
[1746741079443,3.40735734,2167.2,2167.1,5.40416172]
[1746741079757,6.30520687,2167.8,2167.7,4.61318448]
[1746741079959,0.7826233,2169.5,2167.9,8.39915889]
[1746741079960,7.57060963,2168.0,2167.9,8.39915889]
[1746741080188,0.0236233,2169.5,2168.4,4.61169525]
[1746741080347,0.759,2170.0,2168.7,4.61088288]
[1746741080542,0.759,2170.0,2168.5,4.61130353]
[1746741080543,4.60946452,2169.5,2168.8,5.284]
[1746741080740,4.60871969,2169.8,2168.8,5.284]
[1746741081071,0.759,2170.0,2168.9,3.0]
[1746741081243,4.60978736,2169.3,2168.8,5.284]
[1746741081442,0.759,2170.0,2168.8,5.284]
[1746741081893,4.60741138,2170.5,2169.0,0.7864]
[1746741082095,0.53664114,2170.4,2169.1,13.22925823]
[1746741082271,0.759,2170.6,2169.1,8.57311709]
[1746741082272,4.60723335,2170.5,2169.1,8.57311709]
[1746741082446,0.759,2171.2,2169.2,3.0]
[1746741082642,4.60724419,2170.5,2169.6,7.60909087]
[1746741082889,4.6069255,2170.7,2169.7,21.94508002]
[1746741083193,4.60540779,2171.4,2170.1,0.7864]
[1746741083343,0.46054078,2171.3,2170.1,0.7864]
[1746741083559,4.60695259,2170.7,2170.1,0.7864]
[1746741083759,0.759,2171.7,2170.5,3.0]
[1746741083971,5.36376797,2171.7,2170.5,3.0]
[1746741084176,4.60489961,2171.6,2170.6,5.282]
[1746741084375,4.60489961,2171.6,2170.1,8.09836165]
[1746741084606,4.60532375,2171.4,2170.2,5.282]
[1746741084898,4.60699749,2170.7,2170.3,0.04606711]
[1746741085105,4.60574797,2171.2,2170.2,5.282]
[1746741085260,4.60765792,2170.3,2170.2,5.282]
[1746741085660,4.6074937,2170.4,2170.2,5.282]
[1746741085907,4.60765792,2170.3,2170.2,5.282]
[1746741086385,5.424,2171.1,2170.2,5.282]
[1746741086386,4.60726984,2170.5,2170.2,5.282]
[1746741086962,4.60765792,2170.3,2170.2,5.282]
[1746741087164,4.60689544,2170.7,2170.2,5.282]
[1746741087389,4.6067857,2170.8,2170.3,0.04606999]
[1746741087903,4.60680905,2170.7,2170.2,5.282]
[1746741088087,4.60745908,2170.4,2170.2,5.282]
[1746741088273,4.60730439,2170.5,2170.2,5.282]
[1746741088474,4.60686565,2170.7,2170.2,5.282]
[1746741088475,4.6070821,2170.6,2170.2,5.282]
[1746741088809,4.60658558,2170.9,2170.3,3.04606953]
[1746741089010,4.60676226,2170.8,2170.3,3.04606953]
[1746741089311,4.60560244,2171.3,2170.3,4.29359165]
[1746741089491,4.60682559,2170.7,2170.3,3.0]
[1746741089673,4.60574797,2171.2,2170.3,3.04606678]
[1746741089674,4.60719217,2170.6,2170.3,3.04606678]
[1746741089868,4.60725354,2170.5,2170.3,3.0]
[1746741090310,4.60556637,2171.3,2170.2,5.282]
[1746741090513,4.60762133,2170.4,2170.2,5.282]
[1746741090811,4.60765792,2170.3,2170.2,5.282]
[1746741092903,4.60765792,2170.3,2169.8,7.31196165]
[1746741093121,4.60745286,2170.4,2169.9,5.436]
[1746741093413,4.60724903,2170.5,2169.9,8.436]
[1746741093615,4.60694865,2170.7,2170.0,3.04607071]
[1746741093821,4.60694865,2170.7,2170.1,4.60808257]
[1746741094018,4.60553585,2171.3,2170.0,7.60820657]
[1746741094019,4.60708622,2170.6,2170.0,7.60820657]
[1746741094332,4.60596011,2171.1,2170.0,3.0]
[1746741094484,4.60795403,2170.2,2170.0,3.0]
[1746741094837,4.60765792,2170.3,2170.0,3.0]
[1746741094987,4.6076768,2170.3,2170.1,0.04607569]
[1746741095320,0.0140588,2170.4,2170.1,0.04607569]
[1746741095488,0.0140588,2170.4,2170.0,7.60819479]
[1746741095690,0.0140588,2170.4,2170.0,3.0]
[1746741095909,0.0140588,2170.4,2170.2,4.60784231]
[1746741096109,0.0140588,2170.4,2170.3,7.60765792]
[1746741096297,0.0140588,2170.4,2170.3,8.4235164]
[1746741096493,0.0140588,2170.4,2170.3,8.37745792]
[1746741096916,4.60490127,2171.6,2170.7,4.60668575]
[1746741097117,0.92095844,2171.6,2170.8,5.435]
[1746741097307,4.60500596,2171.6,2170.8,22.031]
[1746741097613,4.60570471,2171.3,2170.8,26.63759559]
[1746741097813,4.6056442,2171.3,2170.8,26.63759559]
[1746741098023,4.60567182,2171.3,2170.8,26.6374341]
[1746741098202,4.60501723,2171.6,2170.9,7.60629154]
[1746741098406,4.60596011,2171.1,2171.0,0.04605032]
[1746741098658,4.60638444,2170.9,2170.8,22.031]
[1746741099047,4.60620251,2171.0,2170.8,22.031]
[1746741099247,4.60553585,2171.3,2170.8,22.031]
[1746741099448,4.60637769,2171.0,2170.8,22.031]
[1746741099662,4.60628356,2171.0,2170.8,22.031]
[1746741099824,4.6060609,2171.1,2170.8,22.031]
[1746741100024,4.60628644,2171.0,2170.8,22.031]
[1746741100353,4.60638444,2170.9,2170.8,22.031]
[1746741100661,4.60627109,2171.0,2170.8,16.596]
[1746741100850,4.60638444,2170.9,2170.8,21.87]
[1746741101050,4.60461672,2171.8,2170.8,21.87]
[1746741101051,4.94878684,2172.6,2170.9,3.0]
[1746741101257,4.60501927,2171.6,2171.1,4.60592801]
[1746741101440,4.60491563,2171.6,2171.2,0.04605068]
[1746741101763,4.60491563,2171.6,2171.1,5.38564821]
[1746741101764,4.60510524,2171.6,2171.1,5.38564821]
[1746741101964,4.60499619,2171.6,2171.1,0.7798]
[1746741102124,4.60499619,2171.6,2171.1,10.60471379]
[1746741102337,4.60499619,2171.6,2171.2,3.0]
[1746741102663,4.60405814,2172.0,2171.1,1.14483756]
[1746741102867,4.60511825,2171.5,2171.2,8.273]
[1746741103033,4.60500797,2171.6,2171.2,8.273]
[1746741103370,4.60491003,2171.6,2171.2,8.273]
[1746741103545,4.60499628,2171.6,2171.2,8.273]
[1746741103857,5.12521265,2172.0,2171.2,9.87869938]
[1746741103858,4.60435041,2171.9,2171.2,9.87869938]
[1746741104165,4.60452151,2171.8,2171.3,4.60544143]
[1746741104365,4.60452151,2171.8,2171.3,4.65148559]
[1746741104538,4.60420523,2172.0,2171.3,4.65148559]
[1746741104539,4.60436551,2171.9,2171.4,4.6053059]
[1746741104720,0.8178,2172.7,2171.5,0.04604208]
[1746741104923,4.60360009,2172.3,2171.6,4.60489961]
[1746741105119,16.24,2175.0,2171.9,4.6042429]
[1746741105120,4.60193281,2173.0,2171.9,4.6042429]
[1746741105333,4.60294093,2172.6,2172.1,4.6038179]
[1746741105533,4.60172104,2173.1,2172.0,9.8769631]
[1746741105736,4.60311832,2172.5,2172.0,5.273]
[1746741105940,4.60331251,2172.4,2172.0,5.273]
[1746741106150,4.60172104,2173.1,2172.0,5.273]
[1746741106356,4.60342525,2172.3,2172.0,5.273]
[1746741106572,4.60281338,2172.6,2172.0,9.87699875]
[1746741106743,4.60219675,2172.9,2172.4,4.60305838]
[1746741106946,4.94482812,2173.4,2172.5,5.43150436]
[1746741107145,4.6009949,2173.5,2172.6,4.60263611]
[1746741107450,0.53649949,2173.5,2172.7,5.272]
[1746741107777,4.60078066,2173.6,2172.8,0.04601212]
[1746741107962,4.60077014,2173.6,2172.8,0.04601212]
[1746741108171,4.60046457,2173.7,2172.8,0.04601212]
[1746741108367,0.764,2174.0,2172.7,5.272]
[1746741108679,4.60176127,2173.1,2172.5,6.1007]
[1746741108842,4.6000276,2173.9,2172.5,6.1007]
[1746741108843,4.60152275,2173.2,2172.5,6.1007]
[1746741109042,4.60178316,2173.1,2172.5,6.1007]
[1746741109392,4.60023921,2173.8,2172.5,10.70357009]
[1746741109545,4.6003666,2173.8,2173.0,4.60188094]
[1746741109747,4.6001296,2173.9,2172.8,3.0]
[1746741109978,1.51050643,2173.8,2173.2,4.60150451]
[1746741110193,5.905,2174.0,2172.7,5.142]
[1746741110194,0.764,2174.0,2173.5,4.60078563]
[1746741110490,0.7594,2174.7,2173.5,5.135]
[1746741110779,0.55,2174.5,2173.3,5.271]
[1746741110978,4.59939288,2174.2,2173.3,5.271]
[1746741111185,0.7594,2174.1,2173.3,5.271]
[1746741111340,4.60097831,2173.5,2173.3,5.271]
[1746741111546,5.149816,2174.0,2173.3,5.271]
[1746741111789,4.60079329,2173.6,2173.3,5.271]
[1746741111990,0.7594,2174.1,2173.3,5.271]
[1746741112155,1.29525944,2174.1,2173.3,5.271]
[1746741112349,1.03035783,2174.4,2173.4,4.60099994]
[1746741112544,4.59896983,2174.4,2173.4,4.60098046]
[1746741112773,4.59952095,2174.2,2173.6,4.60054746]
[1746741112972,4.59944299,2174.2,2173.7,4.60032003]
[1746741113157,0.7594,2174.5,2173.6,4.60060193]
[1746741113362,4.59896983,2174.4,2173.8,4.60018599]
[1746741113562,5.35824084,2174.5,2173.8,4.60008681]
[1746741113563,5.16893571,2174.5,2173.8,4.60008681]
[1746741113949,4.59913431,2174.4,2173.7,5.41159536]
[1746741114185,0.57008748,2174.5,2173.7,0.8113]
[1746741114487,0.7594,2174.9,2173.8,0.04599453]
[1746741114687,5.35740673,2174.9,2174.3,4.5990585]
[1746741114900,0.7594,2175.3,2174.5,4.59875833]
[1746741115079,0.7594,2175.7,2174.6,0.8572796]
[1746741115277,4.59684923,2175.5,2174.7,4.5983354]
[1746741115448,0.53562492,2175.5,2174.8,4.64392602]
[1746741115646,0.7594,2175.7,2174.7,3.0]
[1746741115977,9.71700498,2176.3,2175.2,4.59720037]
[1746741115978,4.59608691,2175.8,2175.2,4.59720037]
[1746741116199,0.7594,2176.1,2175.3,5.114]
[1746741116487,0.7594,2176.7,2175.8,4.59581175]
[1746741116657,0.7594,2176.7,2175.8,5.117]
[1746741116658,4.59485678,2176.4,2175.8,5.117]
[1746741116858,4.59537777,2176.1,2175.8,5.117]
[1746741117158,4.5962219,2175.7,2175.4,0.8113]
[1746741117379,0.45948568,2176.4,2175.4,4.16102357]
[1746741117797,4.59442844,2176.6,2175.4,4.16102357]
[1746741118102,0.7594,2176.7,2175.4,4.16102357]
[1746741118313,4.59600555,2175.9,2175.4,4.16102357]
[1746741118481,0.7594,2176.7,2175.4,0.8113]
[1746741118482,4.59611858,2175.8,2175.4,0.8113]
[1746741118818,0.7594,2176.7,2175.4,1.16064381]
[1746741118997,0.7594,2176.7,2175.4,5.111]
[1746741118998,5.35355277,2176.7,2175.4,5.111]
[1746741119322,0.65637922,2176.6,2175.4,5.111]
[1746741119499,0.65637922,2176.6,2175.5,5.9683]
[1746741119500,0.0873255,2176.6,2175.5,5.9683]
[1746741119703,0.0873255,2176.6,2176.2,4.595155]
[1746741119880,4.5937099,2176.9,2176.3,10.50684484]
[1746741120082,4.59370385,2176.9,2176.3,5.912]
[1746741120373,0.09010138,2176.8,2176.3,22.481]
[1746741120593,0.09010138,2176.8,2176.3,22.85801467]
[1746741120905,4.59403699,2176.8,2176.3,22.85801467]
[1746741121225,4.59383534,2176.9,2176.3,22.481]
[1746741121395,4.59451576,2176.6,2176.3,17.37]
[1746741121578,4.5922116,2177.6,2176.4,5.11]
[1746741121579,4.59428533,2176.7,2176.4,5.11]
[1746741121775,4.5922116,2177.6,2176.4,5.11]
[1746741121999,4.5945325,2176.5,2176.4,5.11]
[1746741124307,4.59477948,2176.4,2176.2,5.109]
[1746741124488,4.59495473,2176.3,2176.2,5.109]
[1746741124675,0.7922,2176.9,2176.2,5.109]
[1746741124676,4.59455591,2176.5,2176.2,5.109]
[1746741124877,4.59495473,2176.3,2176.2,5.109]
[1746741125089,4.59485962,2176.4,2176.2,5.109]
[1746741125407,4.59462437,2176.5,2176.2,5.109]
[1746741125611,4.59477339,2176.4,2176.2,5.109]
[1746741125800,4.59464238,2176.5,2176.2,5.109]
[1746741126003,4.59476979,2176.4,2176.2,5.109]
[1746741126222,4.59464943,2176.5,2176.2,5.109]
[1746741126585,4.59416984,2176.7,2176.2,9.75001764]
[1746741127019,4.59383205,2176.9,2176.3,4.59492207]
[1746741127320,4.59368252,2177.0,2176.6,4.59429274]
[1746741127623,0.53844116,2177.5,2176.3,9.70275109]
[1746741127923,4.59307096,2177.2,2176.7,4.59397273]
[1746741128120,4.59307096,2177.2,2176.8,4.59387481]
[1746741128320,4.59303282,2177.3,2176.9,5.108]
[1746741128509,0.7625,2177.7,2176.9,5.108]
[1746741128710,4.59277679,2177.4,2176.9,9.70165922]
[1746741128910,4.59258027,2177.5,2177.0,4.63936582]
[1746741129086,4.59194537,2177.8,2177.0,0.04592791]
[1746741129286,0.7625,2178.3,2177.0,0.04592791]
[1746741129287,0.7625,2178.3,2177.1,5.108]